bitfinex/quotes_ETHUSD_20241216
["timestamp","ask_amount","ask_price","bid_price","bid_amount"]
[1734373012103,0.55,4036.0,4035.8,0.99112]
[1734373012567,0.55,4036.0,4035.5,0.99117]
[1734373013224,3.38617242,4035.8,4035.3,0.99125]
[1734373013525,0.55,4035.5,4035.1,0.99129]
[1734373014424,0.55,4035.5,4035.2,0.99126]
[1734373014773,0.55,4035.5,4035.4,0.99122]
[1734373015224,0.55,4035.5,4035.2,0.99127]
[1734373015521,0.55,4035.5,4035.4,0.99122]
[1734373017015,0.7656,4036.0,4035.9,0.9911]
[1734373017182,3.50690261,4036.8,4036.0,0.99106]
[1734373017183,0.12152925,4036.3,4036.0,0.99106]
[1734373017382,3.38617242,4036.3,4035.8,0.99112]
[1734373017600,3.38617242,4036.3,4035.9,0.9911]
[1734373017786,3.38617242,4036.3,4035.3,3.0]
[1734373017787,3.80134966,4036.3,4035.3,3.0]
[1734373017986,3.80134966,4036.3,4035.6,0.99117]
[1734373018436,0.55,4036.2,4035.1,0.99128]
[1734373018589,1.06169497,4036.2,4035.4,0.9912]
[1734373019386,1.06169497,4036.2,4035.1,0.99128]
[1734373019620,1.06169497,4036.2,4035.5,0.9912]
[1734373020674,0.55,4036.4,4036.1,0.99104]
[1734373021379,0.55,4036.4,4035.6,0.99116]
[1734373021380,0.7656,4036.5,4035.6,0.759]
[1734373021627,0.8067,4037.4,4037.3,0.99076]
[1734373021800,1.54052967,4038.4,4037.0,0.99081]
[1734373021801,0.8067,4038.3,4037.0,0.99081]
[1734373021999,0.8067,4038.3,4037.0,0.99083]
[1734373022000,1.26928724,4038.2,4037.0,0.99083]
[1734373022308,0.8067,4037.8,4036.2,0.99103]
[1734373022665,0.8067,4037.8,4036.2,3.0]
[1734373022970,0.8067,4037.8,4036.1,0.759]
[1734373023122,0.12022916,4038.4,4037.7,0.99066]
[1734373023123,0.8067,4038.3,4037.7,0.99066]
[1734373023322,0.8067,4038.3,4037.7,0.99063]
[1734373023668,0.8067,4038.3,4037.0,0.99083]
[1734373023873,0.93248654,4038.3,4036.9,0.99085]
[1734373024017,0.93248654,4038.3,4037.4,0.99071]
[1734373024224,0.4318659,4038.2,4036.5,0.99095]
[1734373024560,0.4318659,4038.2,4036.4,0.759]
[1734373024719,0.4318659,4038.2,4036.8,0.99088]
[1734373024920,0.4318659,4038.2,4037.2,0.99076]
[1734373025115,0.4318659,4038.2,4036.7,0.99089]
[1734373025360,0.55,4038.0,4036.7,0.99089]
[1734373025858,0.55,4038.0,4036.6,0.474995]
[1734373026060,0.93248654,4038.3,4036.7,0.0247689]
[1734373026231,0.8067,4038.3,4038.0,0.99058]
[1734373026619,0.8067,4038.3,4037.5,0.9907]
[1734373026855,0.8067,4038.3,4037.7,0.99064]
[1734373027024,0.8067,4038.3,4037.8,0.99063]
[1734373027438,0.8067,4038.3,4037.0,0.99083]
[1734373027439,0.93777008,4038.3,4037.9,0.9906]
[1734373027689,0.55,4038.2,4037.7,0.99066]
[1734373028347,0.55,4038.2,4034.5,3.09141545]
[1734373028348,0.55,4038.2,4037.4,0.99071]
[1734373028679,0.93777008,4038.3,4036.7,3.99089]
[1734373028680,0.55,4038.0,4036.7,0.99089]
[1734373028885,0.55,4037.8,4036.7,0.99089]
[1734373029180,0.55,4037.8,4036.5,0.99095]
[1734373029341,0.55,4037.8,4036.9,3.0]
[1734373029670,0.55,4037.8,4036.4,0.7886]
[1734373029869,0.55,4037.6,4037.2,0.99078]
[1734373030195,0.55,4037.6,4037.2,0.99076]
[1734373030472,0.7637,4037.9,4037.3,0.99074]
[1734373030628,0.7637,4037.9,4037.1,3.0]
[1734373030823,0.7637,4037.9,4036.9,0.99085]
[1734373031027,0.7637,4037.9,4037.7,0.99065]
[1734373031627,0.7637,4037.9,4037.2,0.99078]
[1734373031628,0.55,4037.8,4037.2,0.99078]
[1734373031839,0.55,4037.8,4037.5,0.9907]
[1734373032378,0.55,4037.8,4037.6,0.99068]
[1734373032584,0.772,4038.4,4037.3,4.81980772]
[1734373032795,0.772,4038.4,4037.9,0.99059]
[1734373032967,0.772,4038.4,4037.4,0.99073]
[1734373033282,0.772,4038.4,4037.3,3.0]
[1734373033433,0.772,4038.4,4037.7,0.99066]
[1734373034033,0.772,4038.4,4036.9,0.8043]
[1734373034034,0.55,4038.3,4036.9,0.8043]
[1734373034234,0.55,4038.1,4037.6,0.99068]
[1734373034781,0.55,4038.1,4037.1,0.99081]
[1734373034987,0.55,4038.3,4037.0,3.0]
[1734373035399,2.29349363,4039.4,4036.4,0.12681429]
[1734373035400,0.8326,4039.1,4037.6,0.99066]
[1734373035551,0.8326,4039.1,4038.1,0.99055]
[1734373035749,0.8326,4039.1,4037.3,3.0]
[1734373036027,0.8326,4039.1,4038.6,0.99043]
[1734373036290,0.8326,4039.1,4038.0,0.99057]
[1734373036506,0.8326,4039.1,4038.5,0.99045]
[1734373036793,0.55,4039.0,4038.0,0.99057]
[1734373036961,0.55,4039.0,4038.2,0.99052]
[1734373037168,0.55,4038.8,4038.0,0.99057]
[1734373037344,0.55,4038.8,4037.7,3.0]
[1734373037545,0.55,4038.8,4037.5,0.99069]
[1734373037546,0.55,4038.4,4037.5,0.99068]
[1734373037878,0.55,4038.4,4036.8,0.7785]
[1734373038080,0.55,4038.4,4037.8,0.99063]
[1734373038248,0.55,4038.2,4037.8,0.99063]
[1734373038690,0.55,4038.2,4037.9,0.99061]
[1734373038897,0.55,4038.4,4038.3,0.99051]
[1734373039894,0.27313412,4038.9,4037.9,0.9906]
[1734373040092,0.55,4038.6,4038.4,0.99048]
[1734373040398,0.799,4038.7,4038.5,0.99046]
[1734373041403,0.799,4038.7,4037.6,0.7785]
[1734373041600,0.55,4038.7,4038.6,0.99044]
[1734373043562,0.55,4038.6,4037.4,0.99071]
[1734373043873,0.55,4038.6,4037.8,0.99063]
[1734373045284,0.55,4038.6,4037.9,0.9906]
[1734373047115,0.55,4038.6,4037.5,0.02476539]
[1734373047274,0.55,4038.6,4037.9,0.99059]
[1734373047470,0.55,4038.4,4037.4,0.99073]
[1734373047676,0.13699,4038.5,4037.1,0.9908]
[1734373047677,0.55,4038.2,4037.5,0.99071]
[1734373047879,0.55,4038.2,4037.7,0.99066]
[1734373048081,0.55,4038.2,4036.9,1.9817]
[1734373048281,0.55,4038.2,4037.8,0.99062]
[1734373048589,0.700829,4038.2,4037.8,0.99062]
[1734373049032,0.700829,4038.2,4037.4,0.99073]
[1734373049196,0.700829,4038.2,4037.0,0.99083]
[1734373049396,0.700829,4038.2,4037.4,0.99071]
[1734373049718,0.700829,4038.2,4037.5,0.99069]
[1734373049926,0.700829,4038.2,4037.0,0.99083]
[1734373049927,0.700829,4038.2,4037.8,0.99063]
[1734373050085,0.700829,4038.2,4037.3,0.99075]
[1734373050286,0.55,4038.4,4038.1,0.99056]
[1734373050505,0.7648,4038.8,4038.5,0.99044]
[1734373050710,0.7648,4038.8,4037.6,0.7793]
[1734373050895,0.7648,4038.8,4037.8,0.99062]
[1734373051199,0.7648,4038.8,4037.3,0.99073]
[1734373051200,0.7648,4038.8,4038.0,0.99058]
[1734373051396,0.7648,4038.8,4037.2,0.7793]
[1734373051623,0.7648,4038.8,4037.5,0.99071]
[1734373051792,0.7648,4038.8,4037.6,1.44923396]
[1734373051992,0.7648,4038.8,4037.6,0.45855396]
[1734373052193,0.7648,4038.8,4037.4,0.99073]
[1734373052523,0.7648,4038.8,4038.7,0.99041]
[1734373052850,0.55,4038.7,4037.8,0.99063]
[1734373053001,0.55,4038.7,4038.2,0.99052]
[1734373053202,0.55,4038.7,4037.8,3.99063]
[1734373053203,0.7648,4038.8,4038.7,0.99041]
[1734373053446,0.819,4039.6,4038.2,0.26553157]
[1734373053601,1.26035692,4039.6,4038.3,3.0]
[1734373053806,0.819,4039.6,4038.4,0.0247597]
[1734373054144,0.819,4040.1,4039.4,0.99023]
[1734373054344,0.819,4040.1,4039.1,0.7605]
[1734373054516,0.819,4040.1,4039.9,0.99011]
[1734373054919,0.819,4040.1,4039.5,0.99021]
[1734373055122,0.819,4040.1,4039.6,0.99019]
[1734373055304,0.8106,4040.6,4039.7,0.02475407]
[1734373055507,3.38617242,4040.4,4039.2,3.0]
[1734373055705,0.8106,4040.2,4039.2,0.99028]
[1734373056340,0.8106,4040.2,4038.7,1.7849]
[1734373056341,0.8106,4040.2,4038.7,0.7945]
[1734373056560,0.8106,4040.2,4039.2,3.0]
[1734373056725,0.55,4040.1,4039.0,0.99033]
[1734373057050,0.55,4039.9,4039.2,0.99028]
[1734373057212,0.55,4039.9,4039.5,0.99022]
[1734373057413,0.55,4039.9,4038.7,0.99041]
[1734373057629,0.55,4039.9,4039.0,0.99032]
[1734373057842,0.55,4039.9,4039.2,0.99028]
[1734373058036,0.55,4039.7,4039.2,0.99028]
[1734373058270,0.55,4039.9,4039.3,0.99025]
[1734373058417,0.55,4039.9,4039.0,0.99033]
[1734373058418,3.93617242,4039.9,4039.0,0.99033]
[1734373058613,3.93617242,4039.9,4039.1,0.99031]
[1734373059118,3.93617242,4039.9,4038.2,0.26553157]
[1734373059119,0.55,4039.7,4038.8,0.99038]
[1734373059361,1.67145583,4040.1,4038.1,1.07443394]
[1734373059362,1.3404,4039.3,4038.1,0.7699]
[1734373059520,3.38617242,4038.9,4037.9,0.99059]
[1734373059722,0.7862,4038.8,4037.2,1.08073394]
[1734373059978,0.7862,4038.3,4037.6,0.99067]
[1734373060258,0.41723724,4038.2,4037.6,0.99067]
[1734373060506,0.41723724,4038.2,4037.5,0.9907]
[1734373060881,0.41723724,4038.2,4037.3,0.99075]
[1734373061087,0.41723724,4038.2,4035.5,1.030981]
[1734373061088,3.38617242,4037.4,4036.5,0.99093]
[1734373061398,0.55,4037.2,4036.5,0.99093]
[1734373061559,0.55,4037.2,4036.0,0.8139]
[1734373061764,0.55,4037.2,4037.0,0.99083]
[1734373061958,0.55,4037.2,4037.1,0.99081]
[1734373062162,0.801,4038.2,4037.1,2.05353394]
[1734373062472,0.801,4038.2,4037.8,0.99062]
[1734373062859,0.801,4038.2,4036.7,0.7502]
[1734373063061,0.57336439,4038.1,4037.2,0.99076]
[1734373063264,0.55,4038.0,4037.0,0.99081]
[1734373063581,0.55,4038.0,4036.7,0.7502]
[1734373063786,0.55,4038.0,4037.3,0.99075]
[1734373064707,0.55,4038.0,4036.7,0.7502]
[1734373064708,0.55,4038.0,4037.4,0.99071]
[1734373064908,0.55,4038.0,4037.2,0.99078]
[1734373065063,0.55,4038.0,4037.6,0.99068]
[1734373065259,1.24830612,4038.0,4037.6,0.99068]
[1734373065606,1.24830612,4038.0,4036.8,0.30453394]
[1734373065607,2.79477762,4038.0,4036.8,0.30453394]
[1734373065773,2.79477762,4038.0,4037.2,0.99076]
[1734373066113,2.79477762,4038.0,4037.3,0.99074]
[1734373066420,2.79477762,4038.0,4036.8,0.30453394]
[1734373066558,0.55,4037.8,4037.4,0.99071]
[1734373066763,0.55,4037.8,4037.6,0.99066]
[1734373066992,0.8133,4037.7,4036.8,0.30453394]
[1734373067190,0.8133,4037.3,4036.5,0.99095]
[1734373067460,2.0964715,4037.2,4036.3,0.991]
[1734373067664,0.55,4037.0,4036.4,0.99097]
[1734373067900,0.55,4037.0,4036.0,0.99108]
[1734373068104,0.55,4037.1,4036.5,0.30453394]
[1734373068308,0.55,4037.2,4036.4,0.99095]
[1734373068490,0.55,4037.2,4036.9,0.99085]
[1734373068803,0.55,4037.2,4037.0,0.99082]
[1734373068959,0.68633,4037.2,4036.7,0.9909]
[1734373069163,0.68633,4037.2,4036.0,3.0]
[1734373069365,0.68633,4037.2,4036.8,0.99088]
[1734373071087,0.68633,4037.2,4036.8,0.99087]
[1734373072892,0.68633,4037.2,4036.9,0.99085]
[1734373073211,3.87340639,4037.8,4036.9,3.0]
[1734373073212,4.19397242,4037.8,4036.9,3.0]
[1734373073410,4.19397242,4037.8,4037.3,0.99074]
[1734373073619,4.19397242,4037.8,4037.4,0.99073]
[1734373074161,4.32167779,4037.8,4036.5,0.7649]
[1734373074367,0.55,4037.6,4036.5,0.7649]
[1734373074701,0.55,4037.6,4036.6,3.0]
[1734373075022,0.55,4037.7,4037.2,0.99076]
[1734373075201,1.5464715,4038.0,4036.8,0.0247694]
[1734373075388,2.3317715,4038.2,4037.8,0.99063]
[1734373075568,0.7853,4038.2,4037.4,0.99073]
[1734373075803,0.7853,4038.2,4037.4,3.0]
[1734373075996,0.7853,4038.2,4037.3,0.8048]
[1734373076181,4.63558412,4038.2,4037.2,0.99077]
[1734373076515,2.3317715,4037.6,4036.6,0.9909]
[1734373076717,0.55,4037.4,4036.2,0.99101]
[1734373076872,0.55,4037.2,4036.7,0.9909]
[1734373077415,0.55,4037.3,4037.1,0.99081]
[1734373077617,0.55,4037.5,4037.1,0.99081]
[1734373078065,0.55,4037.5,4036.2,0.57006551]
[1734373078066,1.38299059,4037.5,4036.8,0.99087]
[1734373078464,1.38299059,4037.5,4037.0,0.99082]
[1734373079264,1.38299059,4037.5,4036.5,0.99095]
[1734373079467,1.38299059,4037.5,4036.9,0.99085]
[1734373080027,1.38299059,4037.5,4036.0,0.8048]
[1734373080322,1.38299059,4037.5,4036.1,0.51004539]
[1734373080530,0.8099,4037.0,4036.1,3.0]
[1734373080685,0.55,4036.9,4035.9,0.9911]
[1734373081024,0.55,4036.9,4036.4,0.99097]
[1734373081204,0.55,4036.9,4036.6,0.99091]
[1734373081365,0.55,4036.9,4036.1,0.99103]
[1734373081723,0.55,4036.9,4035.9,0.30453394]
[1734373081865,0.55,4036.9,4036.4,0.99097]
[1734373082067,0.55,4036.9,4036.5,0.99094]
[1734373082265,0.55,4036.9,4036.1,0.99103]
[1734373082467,0.55,4036.7,4036.1,0.99103]
[1734373083124,0.55,4036.7,4035.3,0.7867]
[1734373083332,3.93617242,4036.7,4035.3,0.7867]
[1734373083533,0.771,4036.4,4035.6,0.99116]
[1734373083713,0.55,4036.3,4035.6,0.99116]
[1734373083925,0.55,4036.3,4035.7,0.99115]
[1734373084454,0.55,4036.3,4034.9,0.7796]
[1734373084455,0.768,4035.9,4034.1,0.7632]
[1734373084598,0.55,4035.2,4034.1,0.7632]
[1734373084803,0.55,4035.2,4034.7,0.99139]
[1734373085245,0.55,4035.6,4034.4,0.99146]
[1734373085410,0.55,4035.6,4034.4,0.175466]
[1734373085614,0.55,4035.6,4034.9,0.99133]
[1734373086012,0.55,4035.6,4035.0,0.99131]
[1734373086239,0.55,4035.6,4034.9,0.99133]
[1734373086511,1.24721815,4035.7,4033.5,0.7697]
[1734373086512,1.354,4035.2,4033.5,0.7697]
[1734373086848,1.354,4035.2,4034.5,0.99144]
[1734373087209,1.354,4035.2,4033.7,0.02478562]
[1734373087410,0.55,4035.2,4035.1,0.9913]
[1734373089358,4.14327242,4036.3,4035.1,0.7871]
[1734373089561,4.14327242,4036.3,4035.2,0.477845]
[1734373089562,0.7571,4036.3,4035.2,0.477845]
[1734373089729,0.7571,4036.3,4035.4,0.99122]
[1734373089921,0.7571,4036.3,4035.2,0.477845]
[1734373090121,0.7571,4036.3,4034.6,3.7795]
[1734373090326,0.804,4035.8,4034.4,0.99145]
[1734373090586,0.804,4035.8,4034.5,0.99143]
[1734373090587,0.55,4035.7,4034.5,0.99143]
[1734373090773,0.55,4035.7,4035.1,0.99128]
[1734373090949,0.55,4035.7,4035.2,0.99127]
[1734373091321,0.55,4035.7,4034.4,1.98294]
[1734373091526,0.55,4035.7,4034.5,0.375393]
[1734373091935,0.55,4035.7,4035.2,0.99125]
[1734373092322,0.55,4035.7,4035.5,0.99119]
[1734373092750,0.55,4035.7,4034.4,0.99147]
[1734373092970,0.55,4035.7,4035.0,0.99131]
[1734373093147,0.55,4035.7,4035.1,0.99129]
[1734373093349,0.55,4035.7,4035.3,0.99124]
[1734373093950,0.55,4035.7,4034.5,3.0]
[1734373093951,0.8115,4036.3,4035.6,0.99117]
[1734373094267,0.93316105,4037.2,4035.7,0.02477789]
[1734373094423,2.57746677,4037.7,4035.7,0.02477789]
[1734373094424,3.38617242,4037.1,4036.7,0.99089]
[1734373094623,0.765,4037.9,4036.7,0.9909]
[1734373094823,0.765,4037.9,4036.7,3.0]
[1734373095153,0.765,4037.9,4037.1,0.9908]
[1734373095336,0.765,4037.9,4037.0,0.99083]
[1734373095665,0.765,4037.9,4036.4,0.99095]
[1734373095666,3.23292,4037.8,4036.4,0.99095]
[1734373095835,0.7563,4037.6,4036.4,0.99095]
[1734373096037,0.7563,4037.6,4036.5,0.99095]
[1734373096363,0.7563,4037.6,4036.7,0.99088]
[1734373096578,0.7563,4037.6,4035.7,3.0]
[1734373096733,0.7563,4037.6,4035.6,0.7587]
[1734373096734,0.7563,4037.6,4036.4,0.99096]
[1734373097062,0.1585633,4037.5,4036.5,0.99095]
[1734373097439,0.7725,4037.3,4035.7,0.99113]
[1734373097622,0.55,4037.2,4035.7,3.99113]
[1734373097964,0.55,4037.2,4036.2,0.99102]
[1734373098651,0.55,4037.3,4036.2,0.99102]
[1734373098854,0.55,4037.1,4036.2,0.99102]
[1734373099474,0.55,4037.1,4035.2,3.7672]
[1734373099703,0.55,4037.1,4035.2,0.7672]
[1734373100199,0.55,4037.1,4036.4,0.99098]
[1734373100354,0.7861,4037.2,4037.1,0.99081]
[1734373100557,0.7914,4037.8,4037.3,0.99075]
[1734373101100,0.7914,4037.8,4037.4,0.99073]
[1734373101394,0.7914,4037.8,4037.1,0.99078]
[1734373101596,1.03796374,4037.8,4037.2,0.99078]
[1734373101949,0.7914,4037.7,4035.9,0.99108]
[1734373102207,0.7914,4037.3,4035.7,3.99115]
[1734373102407,3.38617242,4037.4,4035.7,0.99115]
[1734373102408,0.7595,4037.0,4035.7,0.99115]
[1734373102709,0.55,4036.9,4036.2,0.991]
[1734373103556,0.55,4036.9,4035.7,3.0]
[1734373103854,0.55,4036.9,4035.6,0.8196]
[1734373104177,0.55,4036.9,4036.3,0.99098]
[1734373104382,0.55,4036.9,4036.6,0.99093]
[1734373104611,0.55,4036.9,4036.1,0.99105]
[1734373104828,2.3281715,4037.5,4036.1,0.99105]
[1734373105127,2.3281715,4037.5,4037.2,0.99078]
[1734373105128,0.7817,4037.5,4037.2,0.99078]
[1734373105517,0.7817,4037.5,4036.8,0.99086]
[1734373105736,0.7817,4037.5,4037.2,0.99078]
[1734373105891,1.24536972,4037.5,4036.2,0.99102]
[1734373106093,1.24536972,4037.5,4036.6,0.9909]
[1734373106094,1.5464715,4037.4,4036.6,0.9909]
[1734373106314,1.24536972,4037.5,4036.6,0.9909]
[1734373106315,1.5464715,4037.3,4036.6,0.9909]
[1734373106717,1.5464715,4037.3,4035.9,0.8031]
[1734373106922,1.5464715,4037.3,4036.5,0.99095]
[1734373106923,1.5464715,4037.1,4036.5,0.99095]
[1734373107106,1.5464715,4037.1,4036.2,0.991]
[1734373107637,1.5464715,4037.0,4035.7,3.99113]
[1734373107786,1.5464715,4037.0,4036.2,0.991]
[1734373107992,0.55,4036.9,4035.8,0.99111]
[1734373108230,0.55,4036.7,4036.3,0.99098]
[1734373108605,0.55,4036.7,4036.3,0.99099]
[1734373108928,0.55,4036.7,4036.5,0.99095]
[1734373109239,0.55,4036.7,4036.3,0.99099]
[1734373109387,0.55,4036.7,4035.8,0.99112]
[1734373109388,0.55,4036.7,4036.1,0.99105]
[1734373109599,0.55,4036.5,4036.1,0.99105]
[1734373109935,0.55,4036.3,4035.5,0.99118]
[1734373110138,0.55,4036.1,4034.6,0.8197]
[1734373110339,2.0964715,4036.1,4035.4,0.99122]
[1734373110694,0.55,4035.9,4035.8,0.99112]
[1734373110900,0.55,4035.9,4035.3,0.99124]
[1734373111209,0.55,4036.1,4035.4,0.9912]
[1734373111417,0.55,4035.9,4035.5,0.99119]
[1734373111597,0.55,4035.9,4035.0,0.99131]
[1734373111803,0.55,4035.9,4035.4,0.99122]
[1734373112219,0.55,4035.9,4035.6,0.99117]
[1734373112543,0.8137,4035.8,4034.6,0.8197]
[1734373112750,0.16523672,4035.7,4035.1,0.99128]
[1734373113800,0.16523672,4035.7,4034.3,0.7769]
[1734373114041,0.16523672,4035.7,4035.1,0.99128]
[1734373114347,0.16523672,4035.7,4035.0,0.99132]
[1734373114846,0.55,4035.6,4035.1,0.99129]
[1734373115016,0.85754082,4035.6,4035.1,0.99129]
[1734373115356,0.85754082,4035.6,4034.8,0.99135]
[1734373115651,0.85754082,4035.6,4035.0,0.99132]
[1734373115997,0.85754082,4035.6,4035.1,0.99129]
[1734373116201,0.85754082,4035.6,4035.2,0.99127]
[1734373117946,0.85754082,4035.6,4035.3,0.99124]
[1734373118705,0.85754082,4035.6,4034.3,0.7769]
[1734373118936,0.85754082,4035.6,4035.0,0.99131]
[1734373119143,0.85754082,4035.6,4035.1,0.99128]
[1734373119144,0.55,4035.4,4035.1,0.99128]
[1734373119654,0.55,4035.0,4033.2,0.8216]
[1734373119812,2.0964715,4035.0,4034.2,0.99152]
[1734373120012,2.0964715,4035.0,4033.3,0.99174]
[1734373120341,0.55,4034.8,4034.1,0.99154]
[1734373120552,1.11089743,4034.8,4034.1,0.99154]
[1734373120707,0.55,4034.6,4034.2,0.99151]
[1734373120907,0.55,4034.6,4034.4,0.99146]
[1734373121147,0.55,4034.6,4033.4,0.28601588]
[1734373121460,0.55,4034.6,4034.5,0.99144]
[1734373121764,0.55,4034.9,4034.5,0.99144]
[1734373122765,0.55,4034.9,4033.8,3.0]
[1734373122912,1.5464715,4035.6,4035.5,0.9912]
[1734373123112,2.858462,4035.8,4034.7,0.7503]
[1734373123113,0.7965,4035.8,4034.7,0.7503]
[1734373123344,0.7965,4035.8,4035.7,0.99115]
[1734373124159,2.3429715,4035.8,4035.3,0.99123]
[1734373124364,0.7965,4035.8,4035.3,0.99123]
[1734373124513,0.55,4035.7,4035.3,0.99123]
[1734373125056,0.55,4035.7,4035.3,0.99124]
[1734373125217,2.0964715,4035.7,4035.3,0.99124]
[1734373125557,2.0964715,4035.5,4035.0,0.99132]
[1734373125773,0.55,4035.5,4035.0,0.99132]
[1734373126470,0.55,4035.5,4034.6,0.02478224]
[1734373126613,0.55,4035.7,4035.4,0.99122]
[1734373127012,0.55,4035.7,4035.0,0.99132]
[1734373127013,2.0964715,4035.7,4035.0,0.99132]
[1734373127252,0.55,4035.5,4034.6,0.99142]
[1734373127614,0.55,4035.5,4035.0,0.99131]
[1734373127817,0.55,4035.5,4034.6,0.99142]
[1734373128355,2.59196485,4035.5,4034.3,3.0]
[1734373128563,0.55,4035.3,4034.7,0.99137]
[1734373128714,0.55,4035.3,4034.2,0.8072]
[1734373129262,0.55,4035.2,4033.4,0.7939]
[1734373129572,0.55,4035.0,4034.3,0.99149]
[1734373129709,0.55,4034.8,4034.3,0.99149]
[1734373129912,0.55,4034.6,4034.3,0.99149]
[1734373130355,0.55,4034.6,4033.4,0.7939]
[1734373130518,0.55,4034.6,4034.5,0.99144]
[1734373131556,0.55,4034.6,4033.8,0.9916]
[1734373131861,0.70378472,4034.6,4034.0,0.99154]
[1734373132216,0.70378472,4034.6,4034.1,0.99154]
[1734373133239,0.70378472,4034.6,4034.1,0.99153]
[1734373133945,0.55,4034.6,4034.5,0.99144]
[1734373134161,0.7949,4035.2,4034.5,0.99144]
[1734373134455,0.7949,4035.2,4035.0,0.9913]
[1734373134828,0.7949,4035.2,4034.8,0.99137]
[1734373135031,0.7949,4035.2,4034.9,0.99134]
[1734373135269,0.7949,4035.2,4035.0,0.99132]
[1734373135771,0.55,4035.1,4035.0,0.99132]
[1734373136153,0.55,4035.1,4034.8,0.99137]
[1734373136523,0.55,4035.1,4034.2,1.8188]
[1734373136524,0.55,4035.1,4034.2,0.9915]
[1734373136723,0.55,4035.1,4034.7,0.99139]
[1734373136934,0.55,4035.1,4034.2,0.9915]
[1734373137165,0.55,4035.1,4034.6,0.99141]
[1734373137463,0.55,4035.1,4035.0,0.99132]
[1734373138261,0.55,4035.1,4034.9,0.99134]
[1734373140228,0.68449,4035.1,4034.7,0.99139]
[1734373140620,0.68449,4035.1,4033.9,0.815]
[1734373140816,0.68449,4035.1,4034.0,3.0]
[1734373140817,0.55,4035.1,4034.0,3.0]
[1734373141072,0.55,4035.1,4034.2,3.0]
[1734373141370,0.55,4035.5,4035.2,0.99125]
[1734373141935,3.30720635,4035.5,4034.3,0.99149]
[1734373142141,3.30720635,4035.5,4034.8,0.99136]
[1734373142345,4.85367785,4035.5,4034.8,0.99136]
[1734373142659,4.85367785,4035.5,4033.7,3.2921918]
[1734373142660,0.7874,4035.2,4033.7,3.2921918]
[1734373142869,0.55,4035.1,4034.5,0.99144]
[1734373143042,4.85367785,4035.1,4034.2,0.9915]
[1734373143416,4.85367785,4035.1,4032.7,0.21149273]
[1734373143417,0.55,4034.9,4034.4,0.99146]
[1734373143528,0.55,4034.9,4033.4,1.0466918]
[1734373143730,0.55,4034.9,4034.8,0.99137]
[1734373144627,0.55,4035.3,4035.0,0.99131]
[1734373144980,0.55,4035.3,4034.2,0.8321]
[1734373145139,0.55,4035.3,4035.2,0.99127]
[1734373145770,0.7557,4035.7,4035.4,0.99121]
[1734373146274,0.7557,4035.7,4035.0,0.9913]
[1734373146475,0.7557,4035.7,4035.1,0.99128]
[1734373146776,2.75720635,4035.5,4034.9,0.99134]
[1734373146960,0.35129064,4035.4,4034.9,0.99134]
[1734373147177,0.55,4035.3,4034.4,0.99145]
[1734373147368,0.55,4035.3,4033.0,0.25]
[1734373147369,1.5464715,4035.7,4035.4,0.99122]
[1734373147671,3.10181402,4036.5,4035.9,0.9911]
[1734373147672,2.3102715,4036.5,4035.9,0.9911]
[1734373147824,2.3102715,4036.5,4035.4,0.99122]
[1734373147825,0.7638,4036.5,4035.4,0.99122]
[1734373148024,0.7638,4036.5,4035.4,4.45073528]
[1734373148268,0.7638,4036.5,4036.4,0.99098]
[1734373148480,1.5464715,4036.9,4035.9,0.9911]
[1734373148664,2.3178715,4037.0,4036.7,0.9909]
[1734373148994,1.5464715,4036.9,4036.6,0.99093]
[1734373149158,3.03157549,4037.0,4036.6,0.99093]
[1734373149698,1.5464715,4036.9,4035.9,0.99108]
[1734373149856,0.55,4036.7,4036.0,0.99108]
[1734373150061,3.39169448,4036.4,4034.9,0.8253]
[1734373150262,0.55,4036.1,4035.5,0.99118]
[1734373150463,2.0964715,4036.1,4035.5,0.99118]
[1734373150773,0.55,4035.9,4035.5,0.99118]
[1734373150994,0.55,4035.9,4035.3,0.99124]
[1734373151185,1.5464715,4035.8,4035.3,0.99124]
[1734373151385,0.55,4035.7,4035.3,0.99124]
[1734373151589,0.55,4035.7,4034.9,0.8253]
[1734373151790,2.061962,4036.0,4035.6,0.99115]
[1734373151791,0.55,4035.9,4035.6,0.99115]
[1734373152097,0.55,4035.9,4034.9,0.8253]
[1734373152098,2.0964715,4035.9,4035.4,0.99122]
[1734373152298,2.0964715,4035.7,4035.4,0.99122]
[1734373153071,2.0964715,4035.7,4035.1,0.99128]
[1734373153507,0.55,4035.5,4035.2,0.99126]
[1734373153801,0.55,4035.5,4035.3,0.99125]
[1734373154106,0.55,4035.5,4034.6,0.7982]
[1734373154306,0.55,4035.5,4034.6,0.977163]
[1734373154476,2.0964715,4035.5,4034.6,0.977163]
[1734373155004,2.0964715,4035.5,4035.1,0.99129]
[1734373155215,0.55,4035.3,4034.6,0.7982]
[1734373155411,0.55,4035.3,4035.1,0.99127]
[1734373155710,0.55,4035.3,4034.8,0.99136]
[1734373155896,2.0964715,4035.3,4034.6,0.7982]
[1734373156204,2.0964715,4035.3,4034.8,0.99137]
[1734373156361,2.0964715,4035.3,4034.6,0.7982]